bitfinex-derivatives/quotes_ETHF0:USTF0_20250224
["timestamp","ask_amount","ask_price","bid_price","bid_amount"]
[1740365921160,3.2078,2778.1,2777.9,0.00539675]
[1740365921455,0.8202,2778.3,2777.9,0.00539675]
[1740365921662,0.8202,2778.3,2778.2,0.71987]
[1740365922361,3.2078,2778.4,2778.3,0.71985]
[1740365922864,3.2078,2779.0,2778.3,0.71985]
[1740365923066,3.2078,2779.0,2778.2,3.2078]
[1740365923067,3.2078,2779.0,2778.4,2.462]
[1740365923562,3.2078,2779.0,2778.7,0.71972]
[1740365923769,3.2078,2779.0,2778.9,0.71969]
[1740365924263,3.2078,2779.0,2778.5,0.7794]
[1740365924467,3.2078,2779.0,2778.8,0.71969]
[1740365924664,3.2078,2779.0,2778.5,0.7794]
[1740365925162,3.2078,2779.0,2778.4,2.462]
[1740365925367,0.7197,2778.9,2778.4,3.1818]
[1740365925762,3.92748,2779.0,2778.5,0.71978]
[1740365925963,3.2078,2779.0,2778.4,2.462]
[1740365926167,0.7197,2778.9,2778.4,3.18181]
[1740365926854,0.7197,2778.9,2778.4,0.71981]
[1740365927058,3.2078,2779.0,2778.2,4.7545]
[1740365927268,0.71971,2778.9,2778.4,0.71982]
[1740365927768,0.71973,2778.8,2778.3,0.71983]
[1740365927962,3.2078,2778.6,2778.2,2.26656]
[1740365928168,3.92758,2778.6,2778.2,0.7794]
[1740365928464,1.6108,2778.5,2778.2,0.7794]
[1740365928662,1.6108,2778.5,2778.3,0.71985]
[1740365929076,1.6108,2778.5,2778.2,0.7794]
[1740365929667,1.6108,2778.5,2778.2,1.49927]
[1740365930164,1.6108,2778.5,2778.2,0.7794]
[1740365930370,1.6108,2778.5,2778.2,1.49927]
[1740365930571,1.6108,2778.5,2778.2,0.7794]
[1740365930967,1.6108,2778.5,2778.1,0.7573]
[1740365931366,2.33061,2778.5,2778.1,0.7573]
[1740365931573,1.6108,2778.5,2778.1,1.47719]
[1740365931776,1.6108,2778.5,2778.1,0.7573]
[1740365932072,1.6108,2778.5,2778.1,1.47718]
[1740365932470,1.6108,2778.5,2778.1,0.7573]
[1740365932679,3.2078,2778.6,2778.4,0.71982]
[1740365932971,3.2078,2778.6,2778.5,0.71979]
[1740365933675,4.7902,2778.9,2778.8,0.71972]
[1740365933973,3.9773,2778.9,2778.8,0.71972]
[1740365934678,3.9773,2778.9,2778.4,3.2757]
[1740365935268,3.9773,2778.9,2778.8,0.71972]
[1740365935967,3.9773,2778.9,2778.4,3.2757]
[1740365936469,0.00539675,2779.1,2778.4,3.2757]
[1740365936676,0.00539675,2779.1,2779.0,0.71966]
[1740365938975,0.801,2779.7,2779.6,0.71951]
[1740365940378,4.0324,2779.8,2779.4,42.33949675]
[1740365940676,4.0324,2779.8,2779.7,0.71948]
[1740365940868,4.0324,2779.8,2779.4,42.33949675]
[1740365941069,4.0324,2779.8,2779.5,0.71952]
[1740365941573,4.0324,2779.8,2779.6,0.71951]
[1740365941876,4.0324,2779.8,2779.7,0.71948]
[1740365942069,4.0324,2779.8,2779.4,42.33949675]
[1740365942275,4.0324,2779.8,2779.6,0.71949]
[1740365942981,4.0324,2779.8,2779.4,1.53949675]
[1740365943279,4.0324,2779.8,2779.6,0.71949]
[1740365944077,4.75186,2779.8,2779.4,1.53949675]
[1740365944277,4.75186,2779.8,2779.4,2.25904675]
[1740365944480,4.0324,2779.8,2779.5,0.71953]
[1740365944675,4.0324,2779.8,2779.5,0.71952]
[1740365944876,4.0324,2779.8,2779.4,2.25903675]
[1740365945282,4.0324,2779.8,2779.4,1.53949675]
[1740365945480,4.0324,2779.8,2779.5,0.71953]
[1740365946479,4.0324,2779.8,2779.4,2.25904675]
[1740365946679,4.0324,2779.8,2779.5,0.71953]
[1740365946882,4.75187,2779.8,2779.4,1.53949675]
[1740365947179,4.75187,2779.8,2779.4,0.78139675]
[1740365947578,4.0324,2779.8,2779.4,1.50095675]
[1740365948083,4.0324,2779.8,2779.4,0.00539675]
[1740365948284,3.92733,2779.5,2779.4,0.00539675]
[1740365948983,0.71968,2779.0,2778.7,3.2078]
[1740365949177,0.7469,2778.9,2778.7,3.2078]
[1740365949377,0.7469,2778.9,2778.6,0.71976]
[1740365949878,0.7469,2778.9,2778.5,43.236]
[1740365950082,0.7469,2778.9,2778.5,43.24139675]
[1740365950283,0.7469,2778.9,2778.7,0.71973]
[1740365950484,0.7469,2778.9,2778.6,0.71975]
[1740365950983,0.7469,2778.9,2778.6,0.71977]
[1740365951383,0.7469,2778.9,2778.5,43.96117675]
[1740365952286,1.5667,2778.9,2778.6,0.71976]
[1740365952583,5.49419,2778.9,2778.5,43.24139675]
[1740365952782,5.49419,2778.9,2778.5,43.96118675]
[1740365952987,4.7745,2778.9,2778.5,43.24139675]
[1740365953178,5.4942,2778.9,2778.5,43.24139675]
[1740365953381,5.4942,2778.9,2778.5,43.96118675]
[1740365953685,4.7745,2778.9,2778.8,0.71972]
[1740365954384,3.2078,2778.9,2778.8,0.71972]
[1740365954775,1.5594,2779.4,2778.8,6.71972]
[1740365954980,6.1948,2779.6,2778.9,3.2226]
[1740365955190,3.2078,2779.6,2779.2,0.71959]
[1740365955477,0.71956,2779.4,2779.3,40.8]
[1740365955676,0.71962,2779.2,2778.9,2.43]
[1740365955879,1.5594,2779.1,2778.9,2.43]
[1740365956279,1.5594,2779.1,2779.0,40.8]
[1740365956280,2.27904,2779.1,2779.0,40.8]
[1740365956482,1.5594,2779.1,2779.0,40.8]
[1740365957379,1.5594,2779.1,2778.9,2.43]
[1740365957981,1.5594,2779.1,2778.9,3.14969]
[1740365958181,1.5594,2779.1,2778.9,0.71969]
[1740365958385,1.5594,2779.1,2778.9,41.51969]
[1740365959485,1.5594,2779.1,2778.9,40.8]
[1740365959690,1.5594,2779.1,2779.0,0.71966]
[1740365960186,1.5594,2779.1,2778.9,40.8]
[1740365961378,1.5594,2779.1,2778.9,41.51969]
[1740365961782,2.27905,2779.1,2778.7,0.8149]
[1740365961981,3.2078,2779.0,2778.7,0.8149]
[1740365962191,3.92748,2779.0,2778.7,0.8149]
[1740365962388,3.2078,2779.0,2778.7,0.8149]
[1740365963186,3.2078,2779.0,2778.7,1.53462]
[1740365963594,3.2078,2779.0,2778.5,40.80539675]
[1740365964088,3.2078,2779.6,2778.8,3.2078]
[1740365964289,3.2078,2779.6,2778.6,4.0244]
[1740365964489,3.92731,2779.6,2779.2,0.71961]
[1740365964685,3.92731,2779.6,2778.7,2.56496]
[1740365964686,3.2078,2779.6,2779.0,2.43]
[1740365964890,0.71958,2779.4,2779.0,2.43]
[1740365965093,0.71955,2779.5,2779.0,3.14966]
[1740365965291,0.7683,2779.3,2779.0,2.43]
[1740365965490,0.7683,2779.3,2779.1,0.71963]
[1740365965683,0.7683,2779.3,2779.0,3.14965]
[1740365966298,0.7683,2779.3,2779.1,0.71963]
[1740365966595,0.7683,2779.3,2779.0,3.14965]
[1740365966991,0.7683,2779.3,2779.1,0.71964]
[1740365967384,0.7683,2779.3,2779.1,0.71962]
[1740365967586,0.7683,2779.3,2779.0,2.43]
[1740365967797,0.7683,2779.3,2779.1,0.71962]
[1740365967993,3.2078,2779.6,2779.0,2.43]
[1740365968199,3.2078,2779.6,2779.3,0.71958]
[1740365968399,3.2078,2779.6,2779.1,0.7834]
[1740365969199,3.92732,2779.6,2779.1,0.7834]
[1740365969399,3.2078,2779.6,2779.2,0.71961]
[1740365969597,3.2078,2779.6,2779.2,1.54519]
[1740365969794,3.2078,2779.6,2779.2,1.5452]
[1740365970703,3.2078,2779.6,2779.2,0.8256]
[1740365970904,0.71963,2779.2,2778.7,0.71973]
[1740365971100,3.2078,2779.3,2778.9,0.71968]
[1740365971299,1.5318,2779.2,2778.9,0.71968]
[1740365972010,3.2078,2779.0,2778.7,2.32873]
[1740365972210,3.2078,2779.0,2778.7,4.75873]
[1740365972413,3.2078,2779.0,2778.5,40.80539675]
[1740365972414,0.71971,2778.9,2778.5,40.80539675]
[1740365972709,3.92757,2778.6,2778.5,0.00539675]
[1740365973910,5.47827,2778.6,2778.5,0.00539675]
[1740365974109,0.71987,2778.2,2777.9,41.6185]
[1740365974313,0.7706,2778.1,2777.9,0.8185]
[1740365974703,0.7706,2778.1,2777.5,3.15004]
[1740365975012,1.48844,2778.0,2777.6,40.8]
[1740365975208,0.7685,2778.0,2777.6,40.8]
[1740365975415,3.92777,2777.9,2777.6,40.8]
[1740365976410,0.72,2777.7,2777.6,40.8]
[1740365976612,0.71999,2777.8,2777.6,40.8]
[1740365976815,3.2078,2777.9,2777.6,40.8]
[1740365977019,0.71999,2777.8,2777.6,40.8]
[1740365977320,0.72,2777.7,2777.6,40.8]
[1740365977622,0.72,2777.7,2777.5,0.00539675]
[1740365977817,3.2078,2777.6,2777.5,0.00539675]
[1740365978223,3.92783,2777.6,2777.5,0.00539675]
[1740365978912,3.2078,2777.6,2777.5,0.00539675]
[1740365979120,3.92783,2777.6,2777.5,0.00539675]
[1740365981715,3.2078,2777.6,2777.5,0.00539675]
[1740365982215,3.92783,2777.6,2777.5,0.00539675]
[1740365983318,3.2078,2777.6,2777.5,0.00539675]
[1740365983724,3.92783,2777.6,2777.5,0.00539675]
[1740365983927,3.2078,2777.6,2777.5,0.00539675]
[1740365985827,3.2078,2777.6,2777.5,0.72544675]
[1740365986224,3.2078,2777.6,2777.5,0.00539675]
[1740365987023,3.2078,2777.6,2777.5,0.72544675]
[1740365987229,0.77599675,2778.1,2778.0,0.71992]
[1740365987428,0.00539675,2778.1,2778.0,0.71992]
[1740365989117,3.2078,2778.8,2778.0,2.431]
[1740365989317,3.2078,2779.3,2778.3,3.2078]
[1740365989524,0.71969,2778.9,2778.4,3.1922]
[1740365989824,0.71969,2778.9,2778.5,40.8]
[1740365990023,3.2078,2779.0,2778.5,40.8]
[1740365990224,0.71972,2778.8,2778.5,40.8]
[1740365990532,3.21319675,2779.0,2778.5,40.80539675]
[1740365991120,3.2078,2778.7,2778.5,0.00539675]
[1740365992132,0.71977,2778.6,2778.5,0.00539675]
[1740365995736,0.798,2778.6,2777.9,0.8209]
[1740365995931,0.798,2778.6,2777.9,1.54083]
[1740365995932,3.2078,2778.3,2777.9,1.54083]
[1740365996526,3.2078,2778.3,2777.9,0.8209]
[1740365996928,0.71993,2778.0,2777.8,20.78479675]
[1740365997134,3.2078,2777.9,2777.8,0.82279675]
[1740365997437,3.92768,2778.2,2777.8,0.82279675]
[1740365997736,0.71993,2778.0,2777.8,0.82279675]
[1740365997926,3.2078,2778.2,2777.8,0.82279675]
[1740365998525,0.71991,2778.1,2777.8,0.82279675]
[1740365998931,3.2078,2778.2,2777.8,0.82279675]
[1740365999132,3.92775,2777.9,2777.8,0.00539675]
[1740365999534,3.2078,2777.9,2777.8,0.00539675]
[1740366000040,3.92775,2777.9,2777.8,0.00539675]
[1740366000631,3.2078,2777.9,2777.8,0.00539675]
[1740366000839,3.92775,2777.9,2777.8,0.00539675]
[1740366001135,3.2078,2777.9,2777.8,0.00539675]
[1740366001433,3.92775,2777.9,2777.8,0.00539675]
[1740366001627,7.99471,2777.9,2776.8,0.049]
[1740366001832,3.2078,2777.5,2776.9,40.8]
[1740366002233,0.72015,2777.2,2776.9,40.8]
[1740366002431,6.1948,2777.2,2776.8,0.049]
[1740366002637,2.987,2777.2,2776.8,0.76922]
[1740366002834,2.987,2777.2,2776.8,0.049]
[1740366003041,6.1948,2777.2,2776.8,0.049]
[1740366003236,0.7202,2777.0,2776.8,0.049]
[1740366003742,3.92801,2776.9,2776.8,0.049]
[1740366005729,3.2078,2776.9,2776.8,0.049]
[1740366006432,3.2078,2776.9,2776.8,0.76923]
[1740366006634,3.2078,2777.2,2776.8,0.049]
[1740366006835,3.2078,2777.2,2777.1,0.72016]
[1740366007035,0.00539675,2777.3,2776.8,1.6027]
[1740366007036,5.67119675,2777.3,2776.8,0.049]
[1740366007243,3.92801,2776.9,2776.8,0.049]
[1740366007538,6.1948,2776.9,2776.7,0.00539675]
[1740366007742,1.54633,2776.8,2776.7,0.00539675]
[1740366008237,6.8261,2776.8,2775.9,40.8]
[1740366008540,3.2078,2776.2,2775.9,40.8]
[1740366009137,0.72043,2776.1,2775.9,40.8]
[1740366009338,3.2078,2776.2,2775.9,40.8]
[1740366009739,0.72043,2776.1,2775.9,40.8]
[1740366009937,3.9282,2776.2,2775.9,40.8]
[1740366010137,0.72042,2776.1,2775.9,40.8]
[1740366010339,0.72043,2776.1,2775.9,40.8]
[1740366010735,0.72044,2776.0,2775.9,40.8]
[1740366011336,0.72043,2776.1,2775.9,40.8]
[1740366011544,0.72044,2776.0,2775.9,40.8]
[1740366011736,0.72043,2776.1,2775.9,40.8]
[1740366012842,3.2078,2776.2,2775.9,40.8]
[1740366013041,0.72044,2776.1,2775.9,40.8]
[1740366013340,0.72056,2775.6,2775.0,0.60034945]
[1740366013540,3.2078,2775.4,2775.1,0.7821]
[1740366013845,0.72595675,2775.6,2775.2,40.8]
[1740366014252,0.00539675,2775.6,2775.2,40.8]
[1740366014443,0.00539675,2775.6,2775.3,0.72061]
[1740366015138,0.00539675,2775.6,2775.5,0.72057]
[1740366015335,0.00539675,2775.6,2775.3,0.7206]
[1740366015541,0.00539675,2775.6,2775.4,0.72058]
[1740366015938,0.00539675,2775.6,2775.3,0.72061]
[1740366016146,0.00539675,2775.6,2775.4,0.72058]
[1740366016544,0.00539675,2775.6,2775.3,3.92841]
[1740366016743,0.00539675,2775.6,2775.3,3.2078]
[1740366017047,0.72594675,2775.6,2775.2,40.8]
[1740366017641,0.82189675,2775.6,2775.2,40.8]
[1740366018041,0.72062,2775.3,2775.2,40.8]
[1740366018446,0.7206,2775.5,2775.1,0.7821]
[1740366018649,0.82189675,2775.6,2775.1,0.7821]
[1740366018838,3.2078,2775.4,2775.1,40.8]
[1740366019043,3.92841,2775.4,2775.1,40.8]
[1740366019349,0.72063,2775.3,2775.1,40.8]
[1740366020049,0.72064,2775.3,2775.1,40.8]
[1740366020250,3.2078,2775.4,2775.1,40.8]
[1740366020453,3.92843,2775.3,2775.0,0.60034945]
[1740366020952,3.92843,2775.3,2775.0,41.40034945]
[1740366021143,3.2078,2775.3,2775.0,41.40034945]
[1740366021447,0.72068,2775.1,2775.0,41.40034945]
[1740366021648,3.70768,2775.1,2775.0,0.60034945]
[1740366022243,1.80177,2775.0,2773.2,5.01067]
[1740366022450,3.2078,2773.7,2773.0,3.9577]
[1740366022642,5.7198,2773.7,2773.0,3.9577]
[1740366022946,3.2078,2773.4,2773.0,3.2078]
[1740366023150,3.2078,2773.4,2772.8,40.8]
[1740366023453,3.2078,2773.1,2772.4,11.16135187]
[1740366023647,2.56542657,2773.6,2772.5,3.2078]
[1740366023648,3.2078,2773.0,2772.5,3.2078]
[1740366023849,3.2078,2773.4,2772.5,3.2078]
[1740366024043,0.00540657,2773.6,2772.9,3.2078]
[1740366024248,0.00540657,2773.6,2772.8,3.2078]
[1740366024442,0.00540657,2773.6,2772.9,2.526]
[1740366024651,3.2078,2773.5,2772.8,0.786]
[1740366025146,3.93428657,2773.6,2772.9,0.72123]
[1740366025347,3.2078,2773.3,2772.8,0.786]
[1740366025942,5.7528,2773.3,2772.6,3.2078]
[1740366026144,0.72133,2772.6,2772.3,0.786]
[1740366026347,3.2078,2773.0,2772.3,0.786]
[1740366026554,0.72128,2772.8,2772.3,0.786]
[1740366026756,0.72134,2772.6,2772.3,0.786]
[1740366026947,3.92911,2772.7,2772.3,0.786]
[1740366027151,3.2078,2772.7,2772.3,0.786]
[1740366028049,3.20040131,2772.7,2772.3,0.786]
[1740366028254,3.20040131,2772.7,2772.4,41.52137]
[1740366028449,3.20040131,2772.7,2772.4,40.8]
[1740366030347,3.2078,2773.0,2772.4,40.8]
[1740366030559,3.2078,2773.0,2772.9,0.72125]
[1740366030755,3.2078,2773.0,2772.4,3.2078]
[1740366030951,3.2078,2773.0,2772.9,0.72125]
[1740366031157,3.2078,2773.4,2772.9,40.8]
[1740366031851,3.2078,2773.4,2772.9,41.52123]
[1740366032051,3.2078,2773.4,2772.9,40.8]
[1740366032247,3.2078,2773.4,2772.9,41.52124]
[1740366032452,3.2078,2773.4,2772.9,40.8]
[1740366032652,3.2078,2773.4,2773.0,1.53211]
[1740366032861,3.2078,2773.4,2773.0,0.8109]
[1740366033252,3.2078,2773.4,2773.0,1.53212]
[1740366033454,3.2078,2773.4,2773.0,0.8109]
[1740366033759,0.00540657,2773.6,2773.2,0.72116]
[1740366034155,3.2078,2773.5,2773.1,0.72118]
[1740366034356,0.72117,2773.3,2773.0,0.8109]
[1740366034563,0.72113,2773.4,2773.0,0.8109]
[1740366035054,0.7212,2773.1,2772.5,2.548]
[1740366035260,3.2078,2773.2,2772.5,2.548]
[1740366035460,3.2078,2773.2,2772.8,0.72127]
[1740366035660,3.2078,2773.2,2772.6,40.8]
[1740366035855,3.2078,2773.2,2772.8,0.72126]
[1740366036158,3.92907,2772.9,2772.6,40.8]
[1740366036361,3.92907,2772.9,2772.4,0.7988]
[1740366036564,3.92907,2772.9,2772.4,1.52018]
[1740366036754,3.2078,2772.9,2772.4,0.7988]
[1740366036953,0.72128,2772.8,2772.4,0.7988]
[1740366037156,3.2078,2772.9,2772.1,3.2078]
[1740366037354,3.2078,2772.6,2772.1,3.2078]
[1740366037567,0.72139,2772.4,2772.1,3.2078]
[1740366038059,5.01179,2771.6,2769.6,3.2078]
[1740366038253,3.2078,2770.0,2769.7,0.72206]
[1740366038452,3.2078,2770.0,2769.5,8.44383613]
[1740366038655,0.72221,2769.2,2769.1,8.44383613]
[1740366038959,3.2078,2769.6,2769.1,5.56583613]
[1740366039151,3.2078,2769.9,2769.3,2.668]
[1740366039355,0.00540657,2770.1,2769.6,3.2078]
[1740366039759,3.2078,2769.9,2769.1,5.56583613]
[1740366039960,3.93001,2769.2,2769.1,5.56583613]
[1740366040562,3.93001,2769.2,2768.7,13.96088268]
[1740366040563,3.49589573,2769.2,2768.7,5.66053455]
[1740366040761,3.2078,2769.2,2768.7,5.66053455]
[1740366041162,3.2078,2769.2,2768.7,2.78253455]
[1740366041767,3.2078,2768.9,2768.7,2.78253455]
[1740366042460,3.2078,2768.9,2767.9,0.7607]
[1740366042461,0.72246,2768.3,2767.9,0.7607]
[1740366042657,3.2078,2768.2,2767.2,2.799]
[1740366042857,3.2078,2767.7,2767.4,41.6013]
[1740366043062,3.2078,2767.7,2767.0,0.01996121]
[1740366043468,3.93049,2767.4,2767.0,0.01996121]
[1740366043661,3.93056,2767.1,2767.0,0.01996121]
[1740366043861,3.2078,2767.1,2767.0,0.01996121]
[1740366044060,3.93056,2767.1,2767.0,0.01996121]
[1740366044364,3.93056,2767.1,2766.6,2.75249576]
[1740366044669,0.00541643,2768.4,2766.1,16.69577722]
[1740366044670,3.2078,2766.7,2766.1,16.69577722]
[1740366044864,3.2078,2766.4,2766.1,16.69577722]
[1740366045061,3.2078,2766.7,2766.1,16.67577722]
[1740366045265,0.7607,2769.2,2766.1,16.67577722]
[1740366045266,3.2078,2766.3,2766.1,16.67577722]
[1740366045469,3.21321643,2766.5,2766.1,16.67577722]
[1740366045965,3.2078,2766.2,2766.1,16.67577722]
[1740366046167,3.2078,2766.2,2766.1,16.31577722]
[1740366046373,0.00541643,2766.5,2766.1,16.31577722]
[1740366046974,3.2078,2766.3,2766.1,16.31577722]
[1740366047470,0.72299,2766.2,2766.1,15.55579722]
[1740366047669,0.72299,2766.2,2766.1,15.35646222]
[1740366047974,3.2078,2766.3,2766.1,15.35646222]
[1740366048170,3.2078,2766.3,2766.2,40.8]
[1740366048367,3.2078,2766.3,2764.8,3.36003187]
[1740366048569,3.2078,2765.6,2764.8,0.15223187]
[1740366048869,0.72333,2764.9,2764.8,0.15223187]
[1740366049072,3.2078,2765.0,2762.5,1.80991]
[1740366049275,3.2078,2763.6,2762.5,3.2078]
[1740366049474,3.2078,2763.4,2762.6,40.8]
[1740366049776,3.2078,2762.8,2762.6,40.8]
[1740366050072,3.2078,2763.2,2762.6,40.8]
[1740366050672,0.00542672,2763.3,2763.0,3.2078]
[1740366050877,3.2078,2764.0,2763.0,3.2078]
[1740366051068,3.2078,2764.8,2763.7,3.2078]
[1740366051270,3.2078,2764.5,2763.7,3.2078]
[1740366051470,3.2078,2764.1,2763.2,1.6105]
[1740366051671,3.2078,2763.8,2763.2,1.6105]
[1740366051872,0.29338528,2765.7,2763.2,1.6105]
[1740366051873,3.2078,2764.6,2763.3,6.2668]
[1740366052076,3.2078,2764.5,2763.5,1.80926]
[1740366052278,3.2078,2764.5,2763.7,3.2078]
[1740366052467,3.06,2765.1,2763.6,3.2078]
[1740366052667,3.2078,2765.1,2763.8,7.86223662]
[1740366052869,3.2078,2765.4,2764.5,3.2078]
[1740366053073,1.80689,2767.2,2764.5,3.2078]
[1740366053074,3.2078,2765.7,2764.6,3.068]
[1740366053269,3.2078,2765.8,2765.7,0.72312]
[1740366053475,3.2078,2766.4,2765.5,3.2078]
[1740366053680,3.2078,2766.4,2765.6,3.084]
[1740366053882,3.2078,2767.5,2766.8,0.72282]
[1740366054082,3.102,2767.4,2766.3,40.8]
[1740366054382,3.21322672,2767.4,2766.4,3.2078]
[1740366054581,3.21322672,2767.4,2766.3,40.8]
[1740366054582,3.21322672,2767.4,2767.1,0.72276]
[1740366054772,3.21322672,2767.4,2766.7,3.2078]
[1740366054773,0.00542672,2767.4,2766.7,3.2078]
[1740366054978,0.00542672,2767.4,2766.6,0.00542672]
[1740366055182,0.00542672,2767.4,2766.8,3.2078]
[1740366055380,0.00542672,2767.4,2766.6,0.00542672]
[1740366055381,0.00542672,2767.4,2767.3,0.72271]
[1740366055583,0.00542672,2767.4,2767.3,3.2078]
[1740366055785,0.00542672,2767.4,2767.3,0.72271]
[1740366055984,0.00542672,2767.4,2767.3,3.93051]
[1740366056283,3.2078,2768.4,2767.3,9.2078]
[1740366056481,3.2078,2768.4,2767.7,3.2078]
[1740366056891,3.2078,2768.4,2767.8,40.8]
[1740366057192,3.2078,2768.8,2767.8,40.8]
[1740366057389,3.93013,2768.8,2768.0,3.2078]
[1740366057589,3.2078,2768.5,2767.8,40.8]
[1740366057790,0.00542672,2768.6,2768.1,0.00542672]
[1740366057985,0.00542672,2768.6,2768.5,0.72239]
[1740366058493,3.2078,2769.6,2768.4,3.2078]
[1740366058684,3.2078,2769.6,2769.1,0.72222]
[1740366058986,3.2078,2769.9,2769.1,3.2078]
[1740366059189,3.119,2770.1,2769.6,0.7221]
[1740366059383,3.2078,2770.0,2769.4,3.2078]
[1740366059785,3.2078,2770.0,2769.4,0.00541663]
[1740366059983,3.2078,2770.0,2769.4,40.80541663]
[1740366060183,0.00541663,2770.1,2769.5,3.143]
[1740366060383,0.00541663,2770.1,2770.0,0.722]
[1740366060583,0.00541663,2770.1,2769.4,40.80541663]
[1740366060787,3.93521663,2770.1,2769.4,0.00541663]
[1740366061091,3.2078,2769.8,2769.4,0.00541663]
[1740366061286,3.2078,2769.5,2769.4,0.00541663]
[1740366061592,3.2078,2769.8,2769.4,0.00541663]
[1740366061888,0.00541663,2770.1,2769.4,0.72756663]
[1740366062080,3.2078,2769.8,2769.4,0.00541663]
[1740366062287,3.92993,2769.5,2769.4,0.00541663]
[1740366062591,3.2078,2769.5,2768.3,0.7873]
[1740366062894,3.2078,2769.2,2768.2,3.2078]
[1740366063189,3.2078,2769.3,2768.5,3.2078]
[1740366063488,3.2078,2769.0,2768.3,3.184]
[1740366063689,3.93016,2768.7,2768.6,0.00541663]
[1740366063996,3.189,2769.1,2768.6,0.00541663]
[1740366063997,3.189,2769.0,2768.6,0.00541663]
[1740366064192,3.2078,2769.2,2768.6,0.00541663]
[1740366064487,3.93003,2769.2,2768.6,0.00541663]
[1740366064688,3.2078,2769.2,2768.6,0.00541663]
[1740366064889,3.2078,2769.2,2768.7,0.72233]
[1740366065090,3.2078,2769.2,2768.6,0.00541663]
[1740366065988,0.72228,2769.0,2768.6,0.00541663]
[1740366066190,3.93003,2769.2,2768.6,0.00541663]
[1740366066385,3.2078,2769.2,2768.6,0.00541663]
[1740366066695,3.93005,2769.1,2768.6,0.00541663]
[1740366066883,3.2078,2769.1,2768.6,0.00541663]
[1740366067084,3.2078,2769.1,2768.9,0.72227]
[1740366067290,3.182,2769.6,2768.8,3.2078]
[1740366067495,3.2078,2769.4,2768.8,3.2078]
[1740366067790,3.2078,2769.4,2769.2,0.7222]
[1740366067995,3.2078,2769.4,2768.7,3.2078]
[1740366068193,3.2078,2769.4,2768.6,0.00541663]
[1740366068693,3.2078,2769.4,2769.1,0.72224]
[1740366068891,3.2078,2769.4,2768.9,0.72227]
[1740366069090,3.2078,2769.4,2768.6,3.21321663]
[1740366069494,3.2078,2769.4,2769.2,0.7222]
[1740366069797,3.2078,2769.4,2768.9,3.2078]
[1740366070001,3.2078,2770.0,2768.9,6.3878]
[1740366070191,3.2078,2770.0,2769.2,3.2078]
[1740366070498,3.2078,2769.7,2769.1,0.72223]
[1740366070997,3.9299,2769.7,2769.0,0.72224]
[1740366071196,3.2078,2769.7,2768.8,3.189]
[1740366071392,3.2078,2769.7,2769.1,0.72222]
[1740366071690,0.00541663,2770.1,2769.5,0.72211]
[1740366071691,3.2078,2770.0,2769.5,0.72211]
[1740366071898,3.2078,2770.0,2769.6,0.72209]
[1740366072095,0.00541663,2770.1,2769.1,1.8056]
[1740366072287,0.00541663,2770.1,2769.3,3.2078]
[1740366072488,0.00541663,2770.1,2770.0,0.722]
[1740366073692,0.00541663,2770.1,2769.7,44.0078]
[1740366073896,3.2078,2769.9,2769.2,20.03]
[1740366074099,3.2078,2769.8,2769.2,20.03]
[1740366074295,0.00541663,2770.1,2769.2,23.2378]
[1740366074600,3.2078,2769.9,2769.3,0.72217]
[1740366074793,3.2078,2769.9,2769.4,0.72214]
[1740366074989,3.2078,2769.9,2769.6,0.72209]
[1740366075196,3.2078,2769.9,2769.2,23.2378]
[1740366075801,0.72208,2769.8,2769.2,23.2378]
[1740366076000,3.92984,2769.9,2769.2,23.2378]
[1740366076200,3.2078,2769.9,2769.2,23.2378]
[1740366076395,3.92984,2769.9,2769.3,0.72217]
[1740366076597,3.2078,2769.9,2769.2,23.2378]
[1740366076794,0.00541663,2770.1,2769.5,3.2078]
[1740366076997,0.00541663,2770.1,2770.0,0.722]
[1740366077198,0.00541663,2770.1,2769.8,3.2078]
[1740366077390,0.00541663,2770.1,2769.9,0.72203]
[1740366077803,3.2078,2770.0,2769.5,0.72212]
[1740366078103,3.2078,2770.0,2769.4,3.17]
[1740366078595,3.2078,2770.0,2769.5,0.72212]
[1740366079000,3.2078,2770.0,2769.4,3.17]
[1740366079203,0.00541663,2770.1,2770.0,0.722]
[1740366079701,0.00541663,2770.1,2769.8,3.2078]
[1740366079895,0.00541663,2770.1,2769.4,3.17]
[1740366080096,3.21321663,2770.1,2769.4,3.17]
[1740366080303,3.21321663,2770.1,2769.7,0.72206]
[1740366080504,3.21321663,2770.1,2769.3,3.161]
[1740366080703,0.00541663,2770.1,2770.0,0.722]
[1740366080909,0.00541663,2770.1,2769.9,0.72202]
[1740366081103,0.00541663,2770.1,2770.0,0.722]
[1740366081710,0.00541663,2770.1,2769.6,3.2078]
[1740366081898,0.00541663,2770.1,2769.4,40.8]
[1740366082102,0.00541663,2770.1,2770.0,0.722]
[1740366084406,3.2078,2771.0,2770.6,0.72183]
[1740366084810,3.2078,2771.0,2770.2,5.01265]
[1740366085008,3.2078,2771.0,2770.7,0.72181]
[1740366085209,3.2078,2771.0,2770.8,0.72178]
[1740366085406,3.2078,2771.0,2770.9,0.72177]
[1740366085714,3.2078,2771.0,2770.6,0.00541663]
[1740366085913,3.2078,2771.0,2770.6,0.72724663]
[1740366086210,3.92962,2770.7,2770.6,0.00541663]
[1740366087217,3.2078,2770.7,2770.6,0.00541663]
[1740366087908,3.92962,2770.7,2770.6,0.00541663]
[1740366088513,3.2078,2770.7,2770.6,0.00541663]
[1740366089013,3.92962,2770.7,2770.6,0.00541663]
[1740366091409,1.80478,2770.4,2769.2,23.15]